bitfinex/quotes_ETHUSD_20250523
["timestamp","ask_amount","ask_price","bid_price","bid_amount"]
[1747994267689,13.19746534,2680.4,2680.3,14.257]
[1747994267888,13.19746534,2680.4,2680.3,25.43]
[1747994268228,13.19746534,2680.4,2680.3,25.427]
[1747994268824,11.44769576,2680.4,2680.3,25.427]
[1747994268991,6.0,2680.4,2680.3,25.427]
[1747994273034,0.59662897,2681.4,2680.1,0.27680467]
[1747994273334,0.55,2681.2,2680.3,25.427]
[1747994275055,0.55,2681.2,2680.4,14.254]
[1747994275199,1.74976958,2681.2,2680.5,14.254]
[1747994275541,1.74976958,2681.2,2680.6,14.254]
[1747994276212,1.74976958,2681.2,2680.7,27.262]
[1747994276413,6.0,2681.1,2680.7,27.262]
[1747994285962,1.5176,2681.0,2680.7,27.262]
[1747994287465,1.5176,2681.0,2680.7,16.089]
[1747994287628,1.5176,2681.0,2680.8,11.172]
[1747994288481,1.5176,2681.0,2680.7,16.089]
[1747994288633,2.0676,2681.0,2680.9,14.252]
[1747994289039,3.41912958,2681.0,2680.9,14.252]
[1747994289771,1.6621,2680.9,2680.7,16.089]
[1747994289973,1.6621,2680.9,2680.8,25.423]
[1747994290649,8.2121,2680.9,2680.8,25.423]
[1747994291781,6.55,2680.9,2680.7,16.089]
[1747994291938,6.55,2680.9,2678.7,0.1]
[1747994291939,1.5741,2680.8,2678.7,0.1]
[1747994292136,1.5741,2680.8,2679.6,0.25373761]
[1747994292742,1.5741,2680.8,2679.7,25.423]
[1747994294501,1.5741,2680.8,2679.8,25.424]
[1747994295486,6.0,2680.5,2679.6,0.25373761]
[1747994295642,1.5194,2680.4,2680.0,14.252]
[1747994295854,6.0,2680.3,2680.1,14.252]
[1747994296697,1.5012,2680.2,2679.3,17.97339391]
[1747994296863,1.5012,2680.2,2679.4,25.425]
[1747994296864,6.0,2680.1,2679.4,25.425]
[1747994297376,6.0,2680.1,2679.4,14.253]
[1747994297581,1.5535,2680.0,2679.5,11.172]
[1747994298196,1.5535,2680.0,2679.6,25.416]
[1747994298976,1.5535,2680.0,2679.3,16.087]
[1747994299399,1.5535,2680.0,2679.4,25.417]
[1747994299690,1.5535,2680.0,2679.5,11.172]
[1747994301289,1.5535,2680.0,2679.6,1.47734663]
[1747994302096,1.5535,2680.0,2679.7,25.417]
[1747994302459,7.5535,2680.0,2679.7,25.417]
[1747994304105,7.5535,2680.0,2679.8,25.418]
[1747994309801,7.5535,2680.0,2679.9,25.419]
[1747994310670,6.0,2680.0,2679.9,25.419]
[1747994312134,6.0,2680.0,2679.6,1.47734663]
[1747994312431,6.0,2680.0,2679.7,25.42]
[1747994314084,1.5185,2680.5,2679.7,25.42]
[1747994314431,1.5185,2680.5,2679.6,1.47734663]
[1747994314578,1.5185,2680.5,2679.7,25.42]
[1747994315579,1.5185,2680.5,2679.8,25.42]
[1747994316284,1.5185,2680.5,2679.2,1.86893342]
[1747994316483,1.5185,2680.5,2679.4,2.20094537]
[1747994317516,1.5185,2680.5,2679.5,11.5466]
[1747994318023,1.5185,2680.5,2679.5,0.3726]
[1747994318198,1.5185,2680.5,2679.6,11.173]
[1747994318524,1.5185,2680.5,2679.5,0.3726]
[1747994318727,1.5185,2680.5,2679.6,11.173]
[1747994319529,1.5185,2680.5,2679.5,0.3726]
[1747994319719,1.5185,2680.5,2679.6,11.173]
[1747994321036,1.5185,2680.5,2679.5,0.3726]
[1747994321243,1.6185,2680.5,2679.6,11.173]
[1747994321404,1.5094,2680.3,2679.2,0.3726]
[1747994321739,1.5094,2680.3,2679.7,11.173]
[1747994322591,1.5094,2680.3,2679.8,11.173]
[1747994322791,1.5755,2680.1,2679.9,11.173]
[1747994325428,1.5755,2680.1,2679.1,0.3726]
[1747994325628,1.5755,2680.1,2678.6,1.80810191]
[1747994326327,1.5755,2680.1,2678.7,32.15547141]
[1747994326830,1.5755,2680.1,2678.8,11.173]
[1747994328824,1.5755,2680.1,2678.9,1.84261815]
[1747994329025,6.0,2680.0,2679.0,1.82480067]
[1747994329230,6.0,2680.0,2678.9,1.84261815]
[1747994329912,6.0,2680.0,2679.0,1.82480491]
[1747994330130,6.0,2680.0,2678.9,1.84261815]
[1747994330333,5.39452362,2680.0,2678.9,1.84261815]
[1747994330538,5.39452362,2680.0,2678.2,0.3726]
[1747994330739,5.39452362,2680.0,2678.6,0.3726]
[1747994330946,5.39452362,2680.0,2679.0,0.3726]
[1747994331239,1.5755,2680.1,2679.1,1.80939988]
[1747994331706,1.5755,2680.1,2679.3,1.82755711]
[1747994336357,1.5755,2680.1,2679.4,30.324]
[1747994336945,1.5755,2680.1,2679.4,16.09]
[1747994337149,1.5755,2680.1,2679.5,25.407]
[1747994337464,1.5755,2680.1,2679.6,25.407]
[1747994337658,6.97002362,2680.1,2679.6,25.407]
[1747994337867,1.5525,2680.0,2679.6,25.407]
[1747994339471,1.5525,2680.0,2679.4,16.09]
[1747994339691,1.5525,2680.0,2679.7,25.407]
[1747994340762,6.94702362,2680.0,2679.7,25.407]
[1747994341151,1.5449,2679.9,2679.7,25.407]
[1747994343783,5.39452362,2680.0,2679.7,25.407]
[1747994344155,4.78908795,2680.0,2679.7,25.407]
[1747994345953,4.78908795,2680.0,2679.8,16.09]
[1747994346790,1.5545,2680.2,2679.9,14.234]
[1747994348111,1.5545,2680.2,2680.0,11.174]
[1747994351181,4.78908795,2680.3,2680.0,11.174]
[1747994352317,4.78908795,2680.3,2680.1,11.173]
[1747994352527,1.626,2680.4,2680.1,11.173]
[1747994352882,1.626,2680.4,2680.2,11.173]
[1747994353086,1.626,2680.4,2679.3,1.80907691]
[1747994353314,1.626,2680.4,2679.4,25.407]
[1747994353522,1.626,2680.4,2679.5,14.234]
[1747994354203,1.626,2680.4,2678.9,0.9226]
[1747994354404,1.626,2680.4,2679.6,11.173]
[1747994354616,1.626,2680.4,2679.7,14.234]
[1747994354980,6.44908795,2680.7,2679.8,0.00912137]
[1747994355291,6.44908795,2680.7,2679.8,0.444854]
[1747994355797,1.61,2680.6,2679.8,0.444854]
[1747994356006,1.61,2680.6,2679.9,11.173]
[1747994356211,1.61,2680.6,2680.0,30.322]
[1747994356622,1.61,2680.6,2680.0,16.089]
[1747994356927,1.61,2680.6,2680.1,25.406]
[1747994358453,1.61,2680.6,2680.1,14.233]
[1747994358740,0.55,2680.5,2680.2,25.394]
[1747994358891,1.5423,2680.4,2680.2,14.221]
[1747994359090,1.5423,2680.4,2680.3,11.173]
[1747994359323,2.0923,2680.3,2680.2,14.221]
[1747994359514,2.0923,2680.3,2680.2,25.394]
[1747994360800,2.0923,2680.3,2680.2,14.221]
[1747994361902,2.0923,2680.3,2680.2,25.393]
[1747994363827,2.0923,2680.3,2680.2,14.221]
[1747994364034,2.0923,2680.3,2680.2,25.394]
[1747994364327,6.88138795,2680.3,2680.2,25.394]
[1747994365122,1.5205,2680.2,2679.2,0.41376291]
[1747994365430,1.5205,2680.1,2679.3,25.394]
[1747994365723,1.5205,2680.1,2679.3,25.80776291]
[1747994366347,1.5205,2680.1,2679.4,16.089]
[1747994366727,1.5205,2680.1,2679.5,11.173]
[1747994367252,1.5205,2680.1,2679.6,25.394]
[1747994367449,1.5205,2680.1,2679.6,25.80776291]
[1747994368432,1.5205,2680.1,2679.6,14.221]
[1747994368606,1.6205,2680.1,2679.7,11.173]
[1747994368815,1.5016,2679.9,2679.8,11.173]
[1747994369134,6.29068795,2679.9,2679.8,11.173]
[1747994369340,6.84068795,2679.9,2679.8,11.173]
[1747994374850,6.84068795,2679.9,2679.8,11.174]
[1747994376357,6.84068795,2679.9,2679.4,16.089]
[1747994376556,6.89998795,2679.9,2679.8,25.397]
[1747994378051,6.89998795,2679.9,2679.8,14.223]
[1747994378270,7.69998675,2679.9,2679.8,14.223]
[1747994378610,7.69998675,2679.9,2679.4,16.089]
[1747994378611,0.55,2679.5,2679.4,16.089]
[1747994378765,0.55,2679.5,2679.4,41.486]
[1747994379730,7.03008795,2679.5,2679.4,41.486]
[1747994381221,7.03008795,2679.5,2679.4,30.312]
[1747994381419,7.73309675,2679.5,2679.4,41.487]
[1747994381924,7.73309675,2679.5,2679.4,30.312]
[1747994382256,7.73309675,2679.5,2679.4,30.313]
[1747994382417,7.73309675,2679.5,2679.4,41.488]
[1747994383566,7.73309675,2679.5,2679.4,30.313]
[1747994383763,7.73309675,2679.5,2679.4,41.489]
[1747994383955,7.03008795,2679.5,2679.4,41.489]
[1747994385466,7.03008795,2679.5,2679.4,30.313]
[1747994385668,7.03008795,2679.5,2678.6,0.41376291]
[1747994385866,7.03008795,2679.5,2677.8,5.65409836]
[1747994385867,0.1,2678.9,2677.8,5.65409836]
[1747994386050,0.1,2678.9,2678.3,0.34582997]
[1747994386370,0.1,2678.9,2678.4,30.32]
[1747994386555,0.1,2678.9,2678.4,30.66582997]
[1747994386946,1.6633,2679.0,2678.5,11.177]
[1747994387127,1.6633,2679.0,2678.6,11.177]
[1747994387325,0.55,2678.9,2678.4,16.43982997]
[1747994387551,0.55,2679.0,2678.5,25.403]
[1747994387759,1.5107,2678.7,2678.5,14.226]
[1747994387962,1.5107,2678.7,2678.6,11.177]
[1747994390137,0.55,2678.8,2678.6,11.177]
[1747994390469,1.519,2678.9,2678.6,11.177]
[1747994392566,0.55,2678.8,2678.5,14.226]
[1747994392765,0.55,2678.8,2677.7,0.35686291]
[1747994392935,5.33908795,2678.8,2677.8,0.58316428]
[1747994393134,5.33908795,2678.8,2677.8,0.94002719]
[1747994393385,5.33908795,2678.8,2677.9,0.35686291]
[1747994393584,4.78908795,2678.8,2677.9,0.35686291]
[1747994394086,4.78908795,2678.8,2678.0,11.178]
[1747994394886,4.78908795,2678.8,2678.1,11.178]
[1747994396279,4.78908795,2678.8,2678.2,30.315]
[1747994396865,4.78908795,2679.0,2678.2,30.315]
[1747994400294,5.44769576,2679.4,2678.2,30.315]
[1747994400295,4.78908795,2679.3,2678.2,30.315]
[1747994400594,6.29998795,2679.3,2678.3,0.00916493]
[1747994400802,4.78908795,2679.3,2678.3,1.82524174]
[1747994401296,4.78908795,2679.3,2678.4,2.21321427]
[1747994401460,4.78908795,2679.3,2678.5,0.00916149]
[1747994401655,4.78908795,2679.3,2678.4,1.85635136]
[1747994401855,4.78908795,2679.3,2678.3,1.81607681]
[1747994402263,1.5163,2679.7,2678.3,2.18887681]
[1747994402451,6.30538795,2679.7,2678.3,2.18887681]
[1747994403364,0.55,2679.4,2678.3,0.3728]
[1747994403571,0.55,2679.4,2678.4,27.25951571]
[1747994403778,0.55,2679.4,2678.4,27.25035136]
[1747994403975,1.5654,2679.5,2678.4,27.25035136]
[1747994404575,1.5654,2679.5,2678.4,16.07235136]
[1747994404782,0.55,2679.4,2678.3,1.81607681]
[1747994405012,0.55,2679.4,2678.5,25.394]
[1747994405178,0.55,2679.4,2678.6,25.394]
[1747994405987,0.55,2679.4,2678.7,25.394]
[1747994406307,1.6176,2679.3,2678.8,25.394]
[1747994407315,2.1676,2679.6,2678.8,25.394]
[1747994407513,1.6176,2679.6,2678.8,25.394]
[1747994409313,0.55,2679.5,2678.9,25.394]
[1747994410011,2.1172,2679.6,2678.4,1.85635136]
[1747994410198,2.1172,2679.6,2678.5,25.394]
[1747994410375,1.6597,2679.5,2678.5,25.7668]
[1747994410576,1.6597,2679.3,2678.6,25.394]
[1747994412197,1.6597,2679.3,2678.6,27.27902987]
[1747994414100,1.6597,2679.3,2678.6,25.394]
[1747994415174,1.6597,2679.3,2678.7,25.394]
[1747994415477,1.6597,2679.3,2678.7,14.216]
[1747994415683,0.55,2679.6,2678.8,11.178]
[1747994415897,1.5272,2679.3,2678.8,11.178]
[1747994416193,2.0772,2679.0,2678.9,11.178]
[1747994416398,0.55,2678.9,2678.2,16.098]
[1747994416597,2.0772,2678.9,2678.3,25.394]
[1747994417023,2.0772,2678.9,2676.7,2.36601552]
[1747994417238,2.0772,2678.9,2677.8,0.3728]
[1747994417387,2.0772,2678.9,2677.9,1.8705349]
[1747994417590,0.55,2678.7,2677.3,1.89532708]
[1747994417828,0.55,2678.7,2677.3,2.22245141]
[1747994418198,0.55,2678.7,2677.6,0.3728]
[1747994418522,1.5617,2678.6,2677.7,2.23139078]
[1747994418827,1.5617,2678.6,2677.8,13.02312196]
[1747994419589,1.5617,2678.6,2677.8,11.178]
[1747994420291,1.5617,2678.6,2677.7,2.23139078]
[1747994420490,1.5617,2678.6,2677.8,11.179]
[1747994420784,1.5617,2678.6,2677.7,2.23139078]
[1747994420989,1.5617,2678.6,2677.8,11.179]
[1747994422932,1.6041,2679.0,2678.0,1.84016389]
[1747994423289,1.6041,2679.0,2677.9,1.8705349]
[1747994423490,1.6041,2679.0,2678.1,1.83663175]
[1747994423693,1.5546,2679.2,2678.2,0.00916972]
[1747994424003,1.5546,2679.2,2677.9,1.8705349]
[1747994424203,1.5546,2679.2,2677.9,2.2433349]
[1747994425518,1.5546,2679.2,2678.1,2.20943175]
[1747994425718,1.5546,2679.2,2678.2,0.3728]
[1747994426235,1.5546,2679.2,2678.3,30.31217063]
[1747994426417,1.5546,2679.2,2678.3,30.303]
[1747994427921,1.5546,2679.2,2678.3,17.96931138]
[1747994428426,1.5546,2679.2,2678.4,25.384]
[1747994428779,1.5546,2679.2,2678.5,25.384]
[1747994429047,0.55,2679.2,2678.6,25.384]
[1747994429253,0.55,2678.9,2678.3,16.098]
[1747994429464,1.6475,2678.8,2678.4,25.384]
[1747994430072,1.6475,2678.8,2678.3,16.098]
[1747994430279,1.6475,2678.8,2678.5,25.384]
[1747994430781,1.6475,2678.8,2678.3,16.098]
[1747994430964,1.6475,2678.8,2678.6,14.205]
[1747994431339,1.6475,2678.8,2678.7,25.384]
[1747994431540,2.1975,2678.8,2678.7,14.205]
[1747994431775,2.41725,2678.8,2678.7,25.384]
[1747994431972,2.1824,2678.8,2678.7,25.384]
[1747994433603,1.60066284,2679.0,2678.7,14.205]
[1747994433764,1.554,2679.0,2678.7,25.384]
[1747994433962,0.55,2678.7,2678.3,16.098]
[1747994434159,1.5215,2678.8,2678.4,25.384]
[1747994434368,1.6255,2678.7,2678.4,14.205]
[1747994434561,0.55,2678.6,2678.5,11.179]
[1747994434863,6.96458795,2678.6,2678.5,11.179]
[1747994435683,6.96458795,2678.6,2678.3,16.098]
[1747994435899,1.5252,2678.5,2678.4,25.385]
[1747994436713,1.5252,2678.5,2678.3,16.098]
[1747994436919,1.5252,2678.5,2678.4,25.385]
[1747994437609,1.5252,2678.5,2678.3,16.098]
[1747994437812,1.5252,2678.5,2678.4,25.386]
[1747994438010,6.31428795,2678.5,2678.4,25.386]
[1747994439515,0.55,2678.4,2676.7,0.3728]
[1747994439691,1.5399,2678.3,2677.5,2.23872181]
[1747994440215,6.32898795,2678.3,2677.6,1.8295169]
[1747994440714,6.29258795,2678.3,2677.7,13.0155786]
[1747994441101,6.29258795,2678.3,2677.7,11.18]
[1747994441481,6.29258795,2678.3,2677.8,11.18]
[1747994441801,6.29258795,2678.3,2677.5,2.23872181]
[1747994441983,6.29258795,2678.3,2677.9,11.18]
[1747994442680,4.78908795,2678.3,2678.0,11.18]
[1747994443017,4.78908795,2678.3,2677.4,0.4092]
[1747994443187,4.78908795,2678.3,2678.1,11.18]
[1747994443593,4.78908795,2678.3,2677.4,0.4092]
[1747994443594,4.78908795,2678.3,2678.2,11.18]
[1747994444614,4.78908795,2678.3,2677.5,0.0364]
[1747994444827,4.78908795,2678.3,2678.2,11.18]
[1747994445394,4.78908795,2678.3,2677.5,0.0364]
[1747994445599,1.5505,2678.2,2677.5,0.0364]
[1747994446008,1.5505,2678.2,2677.6,11.18]
[1747994446218,1.5505,2678.2,2677.7,30.307]
[1747994447708,1.5505,2678.2,2677.7,16.1]
[1747994447908,1.5505,2678.2,2677.8,25.388]
[1747994449338,1.5505,2678.2,2677.7,16.1]
[1747994449543,1.5505,2678.2,2677.9,25.388]
[1747994449740,6.33958795,2678.2,2677.9,25.388]
[1747994451877,1.5252,2678.1,2678.0,11.181]
[1747994452225,1.5252,2678.1,2678.0,25.381]
[1747994454132,1.5252,2678.1,2678.0,14.2]
[1747994454328,1.5252,2678.1,2678.0,25.381]
[1747994455473,1.5252,2678.1,2678.0,41.483]
[1747994456679,1.5252,2678.1,2678.0,41.484]
[1747994457672,2.6188796,2678.1,2678.0,16.102]
[1747994457971,2.6188796,2678.1,2678.0,41.484]
[1747994458173,2.6188796,2678.1,2678.0,16.102]
[1747994458363,2.6188796,2678.1,2678.0,41.484]
[1747994460547,7.40796755,2678.1,2678.0,30.303]
[1747994461587,6.31428795,2678.1,2678.0,30.303]
[1747994462088,6.86428795,2678.1,2678.0,30.303]
[1747994463483,6.86428795,2678.1,2678.0,41.486]
[1747994464559,6.86428795,2678.1,2678.0,16.102]
[1747994464951,6.86428795,2678.1,2678.0,41.487]
[1747994465165,7.55071675,2678.1,2678.0,41.487]
[1747994470120,6.31428795,2678.1,2678.0,41.487]
[1747994470887,6.86428795,2678.1,2678.0,41.489]
[1747994473107,6.86428795,2678.1,2678.0,16.102]
[1747994473411,6.86428795,2678.1,2678.0,41.489]
[1747994474553,1.6598,2677.9,2676.9,0.36828206]
[1747994474853,0.55,2677.7,2676.9,0.36828206]
[1747994475127,0.55,2677.5,2676.9,0.36828206]
[1747994475346,0.55,2677.3,2676.9,0.36828206]
[1747994475520,5.33908795,2677.3,2676.9,0.36828206]
[1747994475728,5.33908795,2677.3,2677.0,11.184]
[1747994476249,5.33908795,2677.3,2677.1,30.31]
[1747994477148,5.33908795,2677.3,2677.1,16.106]
[1747994477338,5.33908795,2677.3,2677.2,25.389]
[1747994479054,5.33908795,2677.3,2676.1,0.3728]
[1747994479354,10.78678371,2677.3,2676.2,0.33759189]
[1747994480349,10.78678371,2677.3,2676.3,11.185]
[1747994480553,10.78678371,2677.3,2676.3,11.52259189]
[1747994481059,10.78678371,2677.3,2676.4,11.185]
[1747994482254,4.78908795,2677.2,2676.4,11.185]
[1747994483516,1.5891,2676.8,2676.5,11.186]
[1747994483828,5.33908795,2676.7,2676.6,11.186]
[1747994486355,5.33908795,2676.7,2676.6,41.493]
[1747994486561,6.85628795,2676.7,2676.6,16.109]
[1747994486873,6.85628795,2676.7,2676.6,14.198]
[1747994488787,7.54191675,2676.7,2676.6,14.198]
[1747994489281,7.54191675,2676.7,2674.1,1.8407051]
[1747994489282,0.55,2676.3,2674.1,1.8407051]
[1747994489488,0.55,2676.3,2674.3,1.89842751]
[1747994489780,0.55,2676.3,2674.5,1.86374077]
[1747994489934,0.55,2675.9,2674.7,1.8646031]
[1747994490136,1.6368,2675.8,2674.8,14.199]
[1747994490371,4.78908795,2677.1,2674.8,14.199]
[1747994490372,0.04672088,2675.7,2674.8,14.199]
[1747994490542,0.55,2675.5,2674.0,1.80451055]
[1747994490739,0.55,2675.5,2674.9,11.188]
[1747994490941,0.55,2675.5,2675.0,14.199]
[1747994493087,1.6368,2675.6,2675.0,14.199]
[1747994494783,1.6368,2675.6,2674.5,2.165725]
[1747994494986,0.55,2675.5,2674.6,25.393]
[1747994495150,0.55,2675.5,2674.5,2.165725]
[1747994495354,0.55,2676.0,2674.7,27.95479998]
[1747994495682,0.55,2676.0,2674.8,14.88754192]
[1747994496176,0.55,2676.0,2674.8,14.52898423]
[1747994496356,0.55,2676.0,2674.9,30.317]
[1747994496557,0.76935,2676.0,2675.0,11.191]
[1747994497457,0.76935,2676.0,2674.9,30.317]
[1747994497458,2.0946,2675.8,2674.9,16.115]
[1747994497674,2.0946,2675.6,2675.1,25.394]
[1747994497884,0.55,2675.4,2675.1,25.394]
[1747994498079,4.78908795,2675.3,2675.1,25.394]
[1747994499695,4.78908795,2675.3,2675.2,11.191]
[1747994500878,2.1056,2675.9,2675.2,11.191]
[1747994500879,4.78908795,2675.8,2675.2,11.191]
[1747994502299,1.5556,2675.9,2675.2,11.191]
[1747994505712,1.5556,2675.9,2675.1,14.203]
[1747994505915,1.5556,2675.9,2674.9,16.115]
[1747994506214,0.55,2675.6,2675.0,25.397]
[1747994506785,1.6252,2675.7,2675.0,25.397]
[1747994507000,0.55,2675.6,2675.0,0.43656923]
[1747994507171,0.55,2675.6,2675.1,25.397]
[1747994507519,0.55,2675.6,2674.9,16.115]
[1747994507520,0.55,2675.4,2675.2,25.397]
[1747994507686,0.7681422,2675.4,2675.2,25.397]
[1747994508700,0.7681422,2675.4,2675.2,14.205]
[1747994508900,0.7681422,2675.4,2675.3,11.192]
[1747994508901,0.55,2675.4,2675.3,11.192]
[1747994509215,1.5847,2675.5,2675.3,11.192]
[1747994509602,0.0847,2675.5,2675.3,11.192]
[1747994511633,10.23678371,2676.0,2675.4,0.48510061]
[1747994511798,10.23678371,2676.0,2675.4,1.428826]
[1747994511994,0.55,2675.9,2675.4,1.428826]
[1747994512893,0.55,2675.9,2675.4,0.43617757]
[1747994514023,0.55,2675.9,2675.5,25.526]
[1747994514536,0.55,2675.9,2675.5,25.96217757]
[1747994514736,0.55,2675.9,2675.5,14.76917757]
[1747994514896,0.55,2675.9,2675.6,11.193]
[1747994515094,10.23678371,2676.0,2675.6,11.193]
[1747994515730,10.23678371,2676.0,2675.6,11.62917757]
[1747994516114,0.55,2675.9,2675.6,11.62917757]
[1747994516434,10.23678371,2676.0,2675.6,11.62917757]
[1747994517334,11.42156208,2676.0,2675.6,0.43617757]
[1747994517538,6.31478795,2675.9,2675.7,25.526]
[1747994518038,1.5257,2676.3,2675.8,1.428826]
[1747994518239,1.5257,2676.3,2675.9,16.118]
[1747994518539,1.5257,2676.3,2675.9,16.55417757]
[1747994518844,1.5925,2676.7,2675.9,16.55417757]
[1747994519543,4.78908795,2676.7,2675.9,16.55417757]
[1747994519839,0.55,2676.1,2676.0,14.332]
[1747994520813,0.55,2676.1,2676.0,25.525]
[1747994522162,0.55,2676.0,2675.5,0.11758757]
[1747994522360,1.5287,2675.9,2675.6,41.641]
[1747994522503,1.5287,2675.9,2675.7,14.332]
[1747994523010,4.78908795,2676.1,2675.7,14.332]
[1747994523907,4.78908795,2676.1,2675.6,16.117]
[1747994524104,1.5281,2675.8,2675.3,0.35858673]
[1747994524331,0.55,2675.7,2675.4,30.449]
[1747994524530,0.55,2675.7,2675.5,30.449]
[1747994525204,2.34241,2675.6,2675.5,16.117]
[1747994525423,1.5846,2675.4,2674.1,1.1272]
[1747994525629,1.6313312,2675.4,2674.2,15.11313455]
[1747994525830,1.6313312,2675.4,2674.2,26.30513455]
[1747994526361,0.55,2675.3,2674.3,16.117]
[1747994526670,1.5416,2675.2,2674.3,41.641]
[1747994526956,1.5416,2675.2,2674.3,30.449]
[1747994527163,1.58833467,2675.2,2674.4,11.192]
[1747994527545,1.58833467,2675.2,2673.6,0.30807951]
[1747994527857,1.5416,2675.2,2673.6,0.30807951]
[1747994528065,1.5416,2675.2,2673.6,1.10647946]
[1747994528267,1.5416,2675.2,2673.7,2.69718649]
[1747994528425,1.5416,2675.2,2673.7,1.10647946]
[1747994528775,0.55,2675.0,2673.8,11.193]
[1747994529098,0.55,2675.0,2673.8,11.6009605]
[1747994529418,4.78908795,2674.9,2673.8,11.193]
[1747994530459,4.78908795,2674.9,2673.8,11.6009605]
[1747994530672,4.78908795,2674.9,2673.9,2.27268054]
[1747994530871,4.78908795,2674.9,2673.9,2.96186929]
[1747994531052,4.78908795,2674.9,2673.9,2.57142984]
[1747994531365,4.78908795,2674.9,2673.9,2.16346934]
[1747994531553,4.78908795,2674.9,2673.9,2.17279045]
[1747994531870,4.78908795,2674.9,2673.9,2.16346934]
[1747994532068,4.78908795,2674.9,2673.9,1.85538983]
[1747994532561,4.78908795,2674.9,2674.0,11.194]
[1747994532738,4.78908795,2674.9,2673.5,0.30807951]
[1747994532739,4.78908795,2674.9,2673.6,1.8250114]
[1747994532935,1.5757,2674.8,2673.7,11.194]
[1747994534561,6.42618795,2674.7,2673.5,0.30807951]
[1747994534764,6.42618795,2674.7,2673.6,11.195]
[1747994535431,6.42618795,2674.7,2673.2,1.80408089]
[1747994535773,0.04673605,2674.9,2673.3,11.195]
[1747994535774,4.78908795,2674.6,2673.3,11.195]
[1747994535947,1.6265,2674.5,2673.4,0.3728]
[1747994536465,1.6265,2674.5,2673.5,30.459]
[1747994536673,1.6265,2674.5,2673.6,11.195]
[1747994539481,1.6265,2674.5,2673.7,1.89878654]
[1747994539636,4.78908795,2674.6,2673.9,1.85538983]
[1747994539971,4.78908795,2674.6,2673.8,0.00932978]
[1747994539972,10.23678371,2676.9,2674.1,1.83802787]
[1747994540191,4.09371094,2676.8,2674.1,1.83802787]
[1747994540484,0.31110355,2676.7,2674.1,1.83802787]
[1747994540666,0.55,2676.6,2674.2,1.5555]
[1747994540846,0.55,2676.4,2674.2,1.5555]
[1747994542671,0.55,2676.2,2674.3,11.197]
[1747994542873,0.55,2675.8,2674.3,11.197]
[1747994543194,1.5008,2675.7,2674.3,11.197]
[1747994544972,0.55,2675.3,2674.4,11.196]
[1747994545161,0.55,2675.3,2673.5,16.43007951]
[1747994545162,1.563,2674.9,2674.5,30.716]
[1747994545364,1.563,2674.9,2674.6,30.716]
[1747994545653,1.563,2674.9,2674.7,30.716]
[1747994545861,1.5097,2674.7,2674.4,11.196]
[1747994546060,6.29878795,2674.6,2674.5,30.716]
[1747994550271,6.29878795,2674.6,2674.5,41.913]
[1747994551697,8.02343632,2674.6,2674.5,30.717]
[1747994551898,8.02343632,2674.6,2674.5,41.914]
[1747994553604,6.29878795,2674.6,2674.5,41.914]
[1747994555293,6.29878795,2674.6,2674.5,16.123]
[1747994555489,6.29878795,2674.6,2674.5,41.916]
[1747994556279,1.5157,2674.9,2674.5,41.916]
[1747994556492,1.5157,2675.1,2674.5,41.916]
[1747994556695,1.5157,2675.1,2674.6,0.31739628]
[1747994557007,1.5157,2675.1,2674.6,0.30807951]
[1747994560986,0.55,2675.5,2674.6,0.30807951]
[1747994561181,6.0,2675.4,2674.6,0.30807951]
[1747994561572,6.0,2675.4,2674.5,41.916]
[1747994562273,6.0,2675.4,2674.6,14.594]
[1747994562990,1.6154,2675.3,2674.6,14.594]
[1747994563375,1.6154,2675.3,2674.7,11.197]
[1747994564276,0.55,2675.2,2674.6,14.594]
[1747994564470,0.55,2675.2,2674.7,11.197]
[1747994564677,7.36654,2675.2,2674.7,11.197]
[1747994565395,7.36654,2675.2,2674.6,14.594]
[1747994565598,7.36654,2675.2,2674.7,11.197]
[1747994565801,0.55,2675.0,2674.8,14.593]
[1747994565986,0.55,2674.8,2673.6,0.3728]
[1747994566186,0.55,2674.6,2673.7,41.913]
[1747994566384,0.55,2674.6,2673.8,14.593]
[1747994566585,1.5285,2674.5,2673.9,25.789]
[1747994567010,1.5285,2674.5,2673.9,14.593]
[1747994567207,1.5285,2674.5,2674.0,11.196]
[1747994568134,1.5285,2674.5,2674.1,25.789]
[1747994568998,1.5285,2674.5,2674.2,25.789]
[1747994570701,1.5285,2674.5,2674.2,25.789]
[1747994571640,1.5285,2674.5,2674.3,11.197]
[1747994571799,1.5285,2674.5,2674.4,25.791]
[1747994572133,7.5285,2674.5,2674.4,25.791]
[1747994572830,1.526,2674.7,2674.4,25.791]
[1747994573491,1.526,2674.7,2673.7,16.123]
[1747994573691,1.526,2674.7,2673.8,25.791]
[1747994575543,0.55,2674.6,2673.7,16.123]
[1747994575731,0.55,2674.6,2673.9,25.615]
[1747994576242,0.55,2674.6,2674.0,0.3728]
[1747994576444,0.55,2674.6,2673.7,16.123]
[1747994576637,0.55,2674.6,2674.1,25.615]
[1747994579990,1.526,2674.7,2674.2,0.00933773]